Workbook

Sheet 作成
A1: 起算日 | D1: 2023-01-01 | J1: 休日設定 | AD1: 試用版
A2: 1日の所定労働時間 | D2: 0.3125 | K2: 日 | L2: 月 | M2: 火 | N2: 水 | O2: 木 | P2: 金 | Q2: 土 | V2: 設定した内容でカレンダーを作成します。（現在のカレンダーはリセットされます。）
A3: 週の開始曜日 | D3: 日曜日 | J3: 第1週 | K3: 休
A4: 祝日は原則として利用日の翌年末分までを自動表示し、毎年2月頃に新たに翌年末分までの自動表示が可能になります。 | J4: 第2週 | K4: 休 | Q4: 休 | V4: 要件チェックを更新します。カレンダーに労働時間や休日を手入力した後に行ってください。
J5: 第3週 | K5: 休
A6: （例）令和7年1月1日～12月31日の祝日は、令和6年2月頃から自動表示が可能になります。 | J6: 第4週 | K6: 休 | Q6: 休 | V6: 作成したカレンダーを印刷・保存用に別シートに出力します。レイアウトなどを変更したい場合は出力後のシートを編集・加工してください。
J7: 第5週 | K7: 休
J8: 祝日 | K8: 休
A10: 日 | B10: 月 | C10: 火 | D10: 水 | E10: 木 | F10: 金 | G10: 土 | H10: 週計 | J10: 日 | K10: 月 | L10: 火 | M10: 水 | N10: 木 | O10: 金 | P10: 土 | Q10: 週計 | S10: 日 | T10: 月 | U10: 火 | V10: 水 | W10: 木 | X10: 金 | Y10: 土 | Z10: 週計 | AB10: 月 | AC10: 暦日 | AD10: 労働日 | AE10: 休日 | AF10: 労働時間
A11: 2023-01-01 | B11: 2023-01-02 | C11: 2023-01-03 | D11: 2023-01-04 | E11: 2023-01-05 | F11: 2023-01-06 | G11: 2023-01-07 | M11: 2023-02-01 | N11: 2023-02-02 | O11: 2023-02-03 | P11: 2023-02-04 | V11: 2023-03-01 | W11: 2023-03-02 | X11: 2023-03-03 | Y11: 2023-03-04 | AB11: 1 | AC11: =COUNTA(A12:G12,A14:G14,A16:G16,A18:G18,A20:G20,A22:G22) -> 31 | AD11: =COUNT(A12:G12,A14:G14,A16:G16,A18:G18,A20:G20,A22:G22) -> 22 | AE11: =AC11-AD11 -> 9 | AF11: =SUM(A12:G12,A14:G14,A16:G16,A18:G18,A20:G20,A22:G22) -> 6.875
A12: 休 | B12: 休 | C12: 0.3125 | D12: 0.3125 | E12: 0.3125 | F12: 0.3125 | G12: 0.3125 | H12: =SUM(A12:G12) -> 1.5625 | M12: 0.3125 | N12: 0.3125 | O12: 0.3125 | P12: 0.3125 | Q12: =SUM(J12:P12,A20:G20) -> 1.875 | V12: 0.3125 | W12: 0.3125 | X12: 0.3125 | Y12: 0.3125 | Z12: =SUM(S12:Y12,J20:P20) -> 1.875 | AB12: 2 | AC12: =COUNTA(J12:P12,J14:P14,J16:P16,J18:P18,J20:P20,J22:P22) -> 28 | AD12: =COUNT(J12:P12,J14:P14,J16:P16,J18:P18,J20:P20,J22:P22) -> 21 | AE12: 7 | AF12: =SUM(J12:P12,J14:P14,J16:P16,J18:P18,J20:P20,J22:P22) -> 6.5625
A13: 2023-01-08 | B13: 2023-01-09 | C13: 2023-01-10 | D13: 2023-01-11 | E13: 2023-01-12 | F13: 2023-01-13 | G13: 2023-01-14 | J13: 2023-02-05 | K13: 2023-02-06 | L13: 2023-02-07 | M13: 2023-02-08 | N13: 2023-02-09 | O13: 2023-02-10 | P13: 2023-02-11 | S13: 2023-03-05 | T13: 2023-03-06 | U13: 2023-03-07 | V13: 2023-03-08 | W13: 2023-03-09 | X13: 2023-03-10 | Y13: 2023-03-11 | AB13: 3 | AC13: =COUNTA(S12:Y12,S14:Y14,S16:Y16,S18:Y18,S20:Y20,S22:Y22) -> 31 | AD13: =COUNT(S12:Y12,S14:Y14,S16:Y16,S18:Y18,S20:Y20,S22:Y22) -> 24 | AE13: 7 | AF13: =SUM(S12:Y12,S14:Y14,S16:Y16,S18:Y18,S20:Y20,S22:Y22) -> 7.5
A14: 休 | B14: 休 | C14: 0.3125 | D14: 0.3125 | E14: 0.3125 | F14: 0.3125 | G14: 休 | H14: =SUM(A14:G14) -> 1.25 | J14: 休 | K14: 0.3125 | L14: 0.3125 | M14: 0.3125 | N14: 0.3125 | O14: 0.3125 | P14: 休 | Q14: =SUM(J14:P14) -> 1.5625 | S14: 休 | T14: 0.3125 | U14: 0.3125 | V14: 0.3125 | W14: 0.3125 | X14: 0.3125 | Y14: 休 | Z14: =SUM(S14:Y14) -> 1.5625 | AB14: 4 | AC14: =COUNTA(A27:G27,A29:G29,A31:G31,A33:G33,A35:G35,A37:G37) -> 30 | AD14: =COUNT(A27:G27,A29:G29,A31:G31,A33:G33,A35:G35,A37:G37) -> 22 | AE14: 8 | AF14: =SUM(A27:G27,A29:G29,A31:G31,A33:G33,A35:G35,A37:G37) -> 6.875
A15: 2023-01-15 | B15: 2023-01-16 | C15: 2023-01-17 | D15: 2023-01-18 | E15: 2023-01-19 | F15: 2023-01-20 | G15: 2023-01-21 | J15: 2023-02-12 | K15: 2023-02-13 | L15: 2023-02-14 | M15: 2023-02-15 | N15: 2023-02-16 | O15: 2023-02-17 | P15: 2023-02-18 | S15: 2023-03-12 | T15: 2023-03-13 | U15: 2023-03-14 | V15: 2023-03-15 | W15: 2023-03-16 | X15: 2023-03-17 | Y15: 2023-03-18 | AB15: 5 | AC15: =COUNTA(J27:P27,J29:P29,J31:P31,J33:P33,J35:P35,J37:P37) -> 31 | AD15: =COUNT(J27:P27,J29:P29,J31:P31,J33:P33,J35:P35,J37:P37) -> 22 | AE15: 9 | AF15: =SUM(J27:P27,J29:P29,J31:P31,J33:P33,J35:P35,J37:P37) -> 6.875
A16: 休 | B16: 0.3125 | C16: 0.3125 | D16: 0.3125 | E16: 0.3125 | F16: 0.3125 | G16: 0.3125 | H16: =SUM(A16:G16) -> 1.875 | J16: 休 | K16: 0.3125 | L16: 0.3125 | M16: 0.3125 | N16: 0.3125 | O16: 0.3125 | P16: 0.3125 | Q16: =SUM(J16:P16) -> 1.875 | S16: 休 | T16: 0.3125 | U16: 0.3125 | V16: 0.3125 | W16: 0.3125 | X16: 0.3125 | Y16: 0.3125 | Z16: =SUM(S16:Y16) -> 1.875 | AB16: 6 | AC16: =COUNTA(S27:Y27,S29:Y29,S31:Y31,S33:Y33,S35:Y35,S37:Y37) -> 30 | AD16: =COUNT(S27:Y27,S29:Y29,S31:Y31,S33:Y33,S35:Y35,S37:Y37) -> 24 | AE16: 6 | AF16: =SUM(S27:Y27,S29:Y29,S31:Y31,S33:Y33,S35:Y35,S37:Y37) -> 7.5
A17: 2023-01-22 | B17: 2023-01-23 | C17: 2023-01-24 | D17: 2023-01-25 | E17: 2023-01-26 | F17: 2023-01-27 | G17: 2023-01-28 | J17: 2023-02-19 | K17: 2023-02-20 | L17: 2023-02-21 | M17: 2023-02-22 | N17: 2023-02-23 | O17: 2023-02-24 | P17: 2023-02-25 | S17: 2023-03-19 | T17: 2023-03-20 | U17: 2023-03-21 | V17: 2023-03-22 | W17: 2023-03-23 | X17: 2023-03-24 | Y17: 2023-03-25 | AB17: 7 | AC17: =COUNTA(A52:G52,A42:G42,A44:G44,A46:G46,A48:G48,A50:G50) -> 31 | AD17: =COUNT(A52:G52,A42:G42,A44:G44,A46:G46,A48:G48,A50:G50) -> 23 | AE17: 8 | AF17: =SUM(A42:G42,A44:G44,A46:G46,A48:G48,A50:G50,A52:G52) -> 7.1875
A18: 休 | B18: 0.3125 | C18: 0.3125 | D18: 0.3125 | E18: 0.3125 | F18: 0.3125 | G18: 休 | H18: =SUM(A18:G18) -> 1.5625 | J18: 休 | K18: 0.3125 | L18: 0.3125 | M18: 0.3125 | N18: 休 | O18: 0.3125 | P18: 休 | Q18: =SUM(J18:P18) -> 1.25 | S18: 休 | T18: 0.3125 | U18: 休 | V18: 0.3125 | W18: 0.3125 | X18: 0.3125 | Y18: 休 | Z18: =SUM(S18:Y18) -> 1.25 | AB18: 8 | AC18: =COUNTA(J52:P52,J42:P42,J44:P44,J46:P46,J48:P48,J50:P50) -> 31 | AD18: =COUNT(J52:P52,J42:P42,J44:P44,J46:P46,J48:P48,J50:P50) -> 24 | AE18: 7 | AF18: =SUM(J52:P52,J42:P42,J44:P44,J46:P46,J48:P48,J50:P50) -> 7.5
A19: 2023-01-29 | B19: 2023-01-30 | C19: 2023-01-31 | J19: 2023-02-26 | K19: 2023-02-27 | L19: 2023-02-28 | S19: 2023-03-26 | T19: 2023-03-27 | U19: 2023-03-28 | V19: 2023-03-29 | W19: 2023-03-30 | X19: 2023-03-31 | AB19: 9 | AC19: =COUNTA(S52:Y52,S42:Y42,S44:Y44,S46:Y46,S48:Y48,S50:Y50) -> 30 | AD19: =COUNT(S52:Y52,S42:Y42,S44:Y44,S46:Y46,S48:Y48,S50:Y50) -> 23 | AE19: 7 | AF19: =SUM(S52:Y52,S42:Y42,S44:Y44,S46:Y46,S48:Y48,S50:Y50) -> 7.1875
A20: 休 | B20: 0.3125 | C20: 0.3125 | J20: 休 | K20: 0.3125 | L20: 0.3125 | S20: 休 | T20: 0.3125 | U20: 0.3125 | V20: 0.3125 | W20: 0.3125 | X20: 0.3125 | AB20: 10 | AC20: =COUNTA(A57:G57,A59:G59,A61:G61,A63:G63,A65:G65,A67:G67) -> 31 | AD20: =COUNT(A57:G57,A59:G59,A61:G61,A63:G63,A65:G65,A67:G67) -> 23 | AE20: 8 | AF20: =SUM(A57:G57,A59:G59,A61:G61,A63:G63,A65:G65,A67:G67) -> 7.1875
AB21: 11 | AC21: =COUNTA(J67:P67,J57:P57,J59:P59,J61:P61,J63:P63,J65:P65) -> 30 | AD21: =COUNT(J57:P57,J59:P59,J61:P61,J63:P63,J65:P65,J67:P67) -> 22 | AE21: 8 | AF21: =SUM(J57:P57,J59:P59,J61:P61,J63:P63,J65:P65,J67:P67) -> 6.875
AB22: 12 | AC22: =COUNTA(S57:Y57,S59:Y59,S61:Y61,S63:Y63,S65:Y65,S67:Y67) -> 31 | AD22: =COUNT(S57:Y57,S59:Y59,S61:Y61,S63:Y63,S65:Y65,S67:Y67) -> 24 | AE22: 7 | AF22: =SUM(S57:Y57,S59:Y59,S61:Y61,S63:Y63,S65:Y65,S67:Y67) -> 7.5
A23: 1日:元日 / 2日:休日 / 9日:成人の日 | J23: 11日:建国記念の日 / 23日:天皇誕生日 | S23: 21日:春分の日 | AB23: 合計 | AC23: =SUM(AC11:AC22) -> 365 | AD23: =SUM(AD11:AD22) -> 274 | AE23: 91 | AF23: 85.625
AB24: 週平均 | AF24: =ROUNDUP(AF23/(AC23/7)*24*60,0)/(24*60) -> 1.642361111
A25: 日 | B25: 月 | C25: 火 | D25: 水 | E25: 木 | F25: 金 | G25: 土 | H25: 週計 | J25: 日 | K25: 月 | L25: 火 | M25: 水 | N25: 木 | O25: 金 | P25: 土 | Q25: 週計 | S25: 日 | T25: 月 | U25: 火 | V25: 水 | W25: 木 | X25: 金 | Y25: 土 | Z25: 週計
G26: 2023-04-01 | K26: 2023-05-01 | L26: 2023-05-02 | M26: 2023-05-03 | N26: 2023-05-04 | O26: 2023-05-05 | P26: 2023-05-06 | W26: 2023-06-01 | X26: 2023-06-02 | Y26: 2023-06-03 | AB26: チェック項目 | AE26: 値 | AF26: 結果
G27: 0.3125 | H27: =SUM(A27:G27,S20:Y20) -> 1.875 | K27: 0.3125 | L27: 0.3125 | M27: 休 | N27: 休 | O27: 休 | P27: 0.3125 | Q27: =SUM(J27:P27,A37:G37) -> 0.9375 | W27: 0.3125 | X27: 0.3125 | Y27: 0.3125 | Z27: =SUM(S27:Y27,J35:P35) -> 1.875 | AB27: 総労働日数が280日を超えていないか | AE27: 274 | AF27: ○
A28: 2023-04-02 | B28: 2023-04-03 | C28: 2023-04-04 | D28: 2023-04-05 | E28: 2023-04-06 | F28: 2023-04-07 | G28: 2023-04-08 | J28: 2023-05-07 | K28: 2023-05-08 | L28: 2023-05-09 | M28: 2023-05-10 | N28: 2023-05-11 | O28: 2023-05-12 | P28: 2023-05-13 | S28: 2023-06-04 | T28: 2023-06-05 | U28: 2023-06-06 | V28: 2023-06-07 | W28: 2023-06-08 | X28: 2023-06-09 | Y28: 2023-06-10
A29: 休 | B29: 0.3125 | C29: 0.3125 | D29: 0.3125 | E29: 0.3125 | F29: 0.3125 | G29: 休 | H29: =SUM(A29:G29) -> 1.5625 | J29: 休 | K29: 0.3125 | L29: 0.3125 | M29: 0.3125 | N29: 0.3125 | O29: 0.3125 | P29: 休 | Q29: =SUM(J29:P29) -> 1.5625 | S29: 休 | T29: 0.3125 | U29: 0.3125 | V29: 0.3125 | W29: 0.3125 | X29: 0.3125 | Y29: 休 | Z29: =SUM(S29:Y29) -> 1.5625 | AB29: 週の最長労働時間が52時間を超えていないか | AE29: 1.875 | AF29: ○
A30: 2023-04-09 | B30: 2023-04-10 | C30: 2023-04-11 | D30: 2023-04-12 | E30: 2023-04-13 | F30: 2023-04-14 | G30: 2023-04-15 | J30: 2023-05-14 | K30: 2023-05-15 | L30: 2023-05-16 | M30: 2023-05-17 | N30: 2023-05-18 | O30: 2023-05-19 | P30: 2023-05-20 | S30: 2023-06-11 | T30: 2023-06-12 | U30: 2023-06-13 | V30: 2023-06-14 | W30: 2023-06-15 | X30: 2023-06-16 | Y30: 2023-06-17
A31: 休 | B31: 0.3125 | C31: 0.3125 | D31: 0.3125 | E31: 0.3125 | F31: 0.3125 | G31: 0.3125 | H31: =SUM(A31:G31) -> 1.875 | J31: 休 | K31: 0.3125 | L31: 0.3125 | M31: 0.3125 | N31: 0.3125 | O31: 0.3125 | P31: 0.3125 | Q31: =SUM(J31:P31) -> 1.875 | S31: 休 | T31: 0.3125 | U31: 0.3125 | V31: 0.3125 | W31: 0.3125 | X31: 0.3125 | Y31: 0.3125 | Z31: =SUM(S31:Y31) -> 1.875 | AB31: 1日の最長労働時間が10時間を超えていないか | AE31: 0.3125 | AF31: ○
A32: 2023-04-16 | B32: 2023-04-17 | C32: 2023-04-18 | D32: 2023-04-19 | E32: 2023-04-20 | F32: 2023-04-21 | G32: 2023-04-22 | J32: 2023-05-21 | K32: 2023-05-22 | L32: 2023-05-23 | M32: 2023-05-24 | N32: 2023-05-25 | O32: 2023-05-26 | P32: 2023-05-27 | S32: 2023-06-18 | T32: 2023-06-19 | U32: 2023-06-20 | V32: 2023-06-21 | W32: 2023-06-22 | X32: 2023-06-23 | Y32: 2023-06-24
A33: 休 | B33: 0.3125 | C33: 0.3125 | D33: 0.3125 | E33: 0.3125 | F33: 0.3125 | G33: 休 | H33: =SUM(A33:G33) -> 1.5625 | J33: 休 | K33: 0.3125 | L33: 0.3125 | M33: 0.3125 | N33: 0.3125 | O33: 0.3125 | P33: 休 | Q33: =SUM(J33:P33) -> 1.5625 | S33: 休 | T33: 0.3125 | U33: 0.3125 | V33: 0.3125 | W33: 0.3125 | X33: 0.3125 | Y33: 休 | Z33: =SUM(S33:Y33) -> 1.5625 | AB33: 連続労働日数が6日（特定期間は12日）を超えていないか | AE33: 6 | AF33: ○
A34: 2023-04-23 | B34: 2023-04-24 | C34: 2023-04-25 | D34: 2023-04-26 | E34: 2023-04-27 | F34: 2023-04-28 | G34: 2023-04-29 | J34: 2023-05-28 | K34: 2023-05-29 | L34: 2023-05-30 | M34: 2023-05-31 | S34: 2023-06-25 | T34: 2023-06-26 | U34: 2023-06-27 | V34: 2023-06-28 | W34: 2023-06-29 | X34: 2023-06-30
A35: 休 | B35: 0.3125 | C35: 0.3125 | D35: 0.3125 | E35: 0.3125 | F35: 0.3125 | G35: 休 | H35: =SUM(A35:G35) -> 1.5625 | J35: 休 | K35: 0.3125 | L35: 0.3125 | M35: 0.3125 | S35: 休 | T35: 0.3125 | U35: 0.3125 | V35: 0.3125 | W35: 0.3125 | X35: 0.3125 | AB35: 対象期間の総労働時間が週平均40時間を超えていないか | AE35: 1.642361111 | AF35: ○
A36: 2023-04-30
A37: 休 | AB37: 48時間を超える週が連続3週を超えていないか | AE37: 0 | AF37: ○
A38: 29日:昭和の日 | J38: 3日:憲法記念日 / 4日:みどりの日 / 5日:こどもの日
AB39: 起算日から3か月ごとに区切った各期間において48時間超の週の初日が3回を超えていないか | AE39: 0 | AF39: ○
A40: 日 | B40: 月 | C40: 火 | D40: 水 | E40: 木 | F40: 金 | G40: 土 | H40: 週計 | J40: 日 | K40: 月 | L40: 火 | M40: 水 | N40: 木 | O40: 金 | P40: 土 | Q40: 週計 | S40: 日 | T40: 月 | U40: 火 | V40: 水 | W40: 木 | X40: 金 | Y40: 土 | Z40: 週計
G41: 2023-07-01 | L41: 2023-08-01 | M41: 2023-08-02 | N41: 2023-08-03 | O41: 2023-08-04 | P41: 2023-08-05 | X41: 2023-09-01 | Y41: 2023-09-02
G42: 0.3125 | H42: =SUM(A42:G42,S35:Y35) -> 1.875 | L42: 0.3125 | M42: 0.3125 | N42: 0.3125 | O42: 0.3125 | P42: 0.3125 | Q42: =SUM(J42:P42,A52:G52) -> 1.875 | X42: 0.3125 | Y42: 0.3125 | Z42: =SUM(S42:Y42,J50:P50) -> 1.875
A43: 2023-07-02 | B43: 2023-07-03 | C43: 2023-07-04 | D43: 2023-07-05 | E43: 2023-07-06 | F43: 2023-07-07 | G43: 2023-07-08 | J43: 2023-08-06 | K43: 2023-08-07 | L43: 2023-08-08 | M43: 2023-08-09 | N43: 2023-08-10 | O43: 2023-08-11 | P43: 2023-08-12 | S43: 2023-09-03 | T43: 2023-09-04 | U43: 2023-09-05 | V43: 2023-09-06 | W43: 2023-09-07 | X43: 2023-09-08 | Y43: 2023-09-09
A44: 休 | B44: 0.3125 | C44: 0.3125 | D44: 0.3125 | E44: 0.3125 | F44: 0.3125 | G44: 休 | H44: =SUM(A44:G44) -> 1.5625 | J44: 休 | K44: 0.3125 | L44: 0.3125 | M44: 0.3125 | N44: 0.3125 | O44: 休 | P44: 休 | Q44: =SUM(J44:P44) -> 1.25 | S44: 休 | T44: 0.3125 | U44: 0.3125 | V44: 0.3125 | W44: 0.3125 | X44: 0.3125 | Y44: 休 | Z44: =SUM(S44:Y44) -> 1.5625
A45: 2023-07-09 | B45: 2023-07-10 | C45: 2023-07-11 | D45: 2023-07-12 | E45: 2023-07-13 | F45: 2023-07-14 | G45: 2023-07-15 | J45: 2023-08-13 | K45: 2023-08-14 | L45: 2023-08-15 | M45: 2023-08-16 | N45: 2023-08-17 | O45: 2023-08-18 | P45: 2023-08-19 | S45: 2023-09-10 | T45: 2023-09-11 | U45: 2023-09-12 | V45: 2023-09-13 | W45: 2023-09-14 | X45: 2023-09-15 | Y45: 2023-09-16
A46: 休 | B46: 0.3125 | C46: 0.3125 | D46: 0.3125 | E46: 0.3125 | F46: 0.3125 | G46: 0.3125 | H46: =SUM(A46:G46) -> 1.875 | J46: 休 | K46: 0.3125 | L46: 0.3125 | M46: 0.3125 | N46: 0.3125 | O46: 0.3125 | P46: 0.3125 | Q46: =SUM(J46:P46) -> 1.875 | S46: 休 | T46: 0.3125 | U46: 0.3125 | V46: 0.3125 | W46: 0.3125 | X46: 0.3125 | Y46: 0.3125 | Z46: =SUM(S46:Y46) -> 1.875
A47: 2023-07-16 | B47: 2023-07-17 | C47: 2023-07-18 | D47: 2023-07-19 | E47: 2023-07-20 | F47: 2023-07-21 | G47: 2023-07-22 | J47: 2023-08-20 | K47: 2023-08-21 | L47: 2023-08-22 | M47: 2023-08-23 | N47: 2023-08-24 | O47: 2023-08-25 | P47: 2023-08-26 | S47: 2023-09-17 | T47: 2023-09-18 | U47: 2023-09-19 | V47: 2023-09-20 | W47: 2023-09-21 | X47: 2023-09-22 | Y47: 2023-09-23
A48: 休 | B48: 休 | C48: 0.3125 | D48: 0.3125 | E48: 0.3125 | F48: 0.3125 | G48: 休 | H48: =SUM(A48:G48) -> 1.25 | J48: 休 | K48: 0.3125 | L48: 0.3125 | M48: 0.3125 | N48: 0.3125 | O48: 0.3125 | P48: 休 | Q48: =SUM(J48:P48) -> 1.5625 | S48: 休 | T48: 休 | U48: 0.3125 | V48: 0.3125 | W48: 0.3125 | X48: 0.3125 | Y48: 休 | Z48: =SUM(S48:Y48) -> 1.25
A49: 2023-07-23 | B49: 2023-07-24 | C49: 2023-07-25 | D49: 2023-07-26 | E49: 2023-07-27 | F49: 2023-07-28 | G49: 2023-07-29 | J49: 2023-08-27 | K49: 2023-08-28 | L49: 2023-08-29 | M49: 2023-08-30 | N49: 2023-08-31 | S49: 2023-09-24 | T49: 2023-09-25 | U49: 2023-09-26 | V49: 2023-09-27 | W49: 2023-09-28 | X49: 2023-09-29 | Y49: 2023-09-30
A50: 休 | B50: 0.3125 | C50: 0.3125 | D50: 0.3125 | E50: 0.3125 | F50: 0.3125 | G50: 0.3125 | H50: =SUM(A50:G50) -> 1.875 | J50: 休 | K50: 0.3125 | L50: 0.3125 | M50: 0.3125 | N50: 0.3125 | S50: 休 | T50: 0.3125 | U50: 0.3125 | V50: 0.3125 | W50: 0.3125 | X50: 0.3125 | Y50: 0.3125 | Z50: =SUM(S50:Y50) -> 1.875
A51: 2023-07-30 | B51: 2023-07-31
A52: 休 | B52: 0.3125
A53: 17日:海の日 | J53: 11日:山の日 | S53: 18日:敬老の日 / 23日:秋分の日
A55: 日 | B55: 月 | C55: 火 | D55: 水 | E55: 木 | F55: 金 | G55: 土 | H55: 週計 | J55: 日 | K55: 月 | L55: 火 | M55: 水 | N55: 木 | O55: 金 | P55: 土 | Q55: 週計 | S55: 日 | T55: 月 | U55: 火 | V55: 水 | W55: 木 | X55: 金 | Y55: 土 | Z55: 週計
A56: 2023-10-01 | B56: 2023-10-02 | C56: 2023-10-03 | D56: 2023-10-04 | E56: 2023-10-05 | F56: 2023-10-06 | G56: 2023-10-07 | M56: 2023-11-01 | N56: 2023-11-02 | O56: 2023-11-03 | P56: 2023-11-04 | X56: 2023-12-01 | Y56: 2023-12-02
A57: 休 | B57: 0.3125 | C57: 0.3125 | D57: 0.3125 | E57: 0.3125 | F57: 0.3125 | G57: 0.3125 | H57: =SUM(A57:G57) -> 1.875 | M57: 0.3125 | N57: 0.3125 | O57: 休 | P57: 0.3125 | Q57: =SUM(J57:P57,A65:G65) -> 1.5625 | X57: 0.3125 | Y57: 0.3125 | Z57: =SUM(S57:Y57,J65:P65) -> 1.875
A58: 2023-10-08 | B58: 2023-10-09 | C58: 2023-10-10 | D58: 2023-10-11 | E58: 2023-10-12 | F58: 2023-10-13 | G58: 2023-10-14 | J58: 2023-11-05 | K58: 2023-11-06 | L58: 2023-11-07 | M58: 2023-11-08 | N58: 2023-11-09 | O58: 2023-11-10 | P58: 2023-11-11 | S58: 2023-12-03 | T58: 2023-12-04 | U58: 2023-12-05 | V58: 2023-12-06 | W58: 2023-12-07 | X58: 2023-12-08 | Y58: 2023-12-09
A59: 休 | B59: 休 | C59: 0.3125 | D59: 0.3125 | E59: 0.3125 | F59: 0.3125 | G59: 休 | H59: =SUM(A59:G59) -> 1.25 | J59: 休 | K59: 0.3125 | L59: 0.3125 | M59: 0.3125 | N59: 0.3125 | O59: 0.3125 | P59: 休 | Q59: =SUM(J59:P59) -> 1.5625 | S59: 休 | T59: 0.3125 | U59: 0.3125 | V59: 0.3125 | W59: 0.3125 | X59: 0.3125 | Y59: 休 | Z59: =SUM(S59:Y59) -> 1.5625
A60: 2023-10-15 | B60: 2023-10-16 | C60: 2023-10-17 | D60: 2023-10-18 | E60: 2023-10-19 | F60: 2023-10-20 | G60: 2023-10-21 | J60: 2023-11-12 | K60: 2023-11-13 | L60: 2023-11-14 | M60: 2023-11-15 | N60: 2023-11-16 | O60: 2023-11-17 | P60: 2023-11-18 | S60: 2023-12-10 | T60: 2023-12-11 | U60: 2023-12-12 | V60: 2023-12-13 | W60: 2023-12-14 | X60: 2023-12-15 | Y60: 2023-12-16
A61: 休 | B61: 0.3125 | C61: 0.3125 | D61: 0.3125 | E61: 0.3125 | F61: 0.3125 | G61: 0.3125 | H61: =SUM(A61:G61) -> 1.875 | J61: 休 | K61: 0.3125 | L61: 0.3125 | M61: 0.3125 | N61: 0.3125 | O61: 0.3125 | P61: 0.3125 | Q61: =SUM(J61:P61) -> 1.875 | S61: 休 | T61: 0.3125 | U61: 0.3125 | V61: 0.3125 | W61: 0.3125 | X61: 0.3125 | Y61: 0.3125 | Z61: =SUM(S61:Y61) -> 1.875
A62: 2023-10-22 | B62: 2023-10-23 | C62: 2023-10-24 | D62: 2023-10-25 | E62: 2023-10-26 | F62: 2023-10-27 | G62: 2023-10-28 | J62: 2023-11-19 | K62: 2023-11-20 | L62: 2023-11-21 | M62: 2023-11-22 | N62: 2023-11-23 | O62: 2023-11-24 | P62: 2023-11-25 | S62: 2023-12-17 | T62: 2023-12-18 | U62: 2023-12-19 | V62: 2023-12-20 | W62: 2023-12-21 | X62: 2023-12-22 | Y62: 2023-12-23
A63: 休 | B63: 0.3125 | C63: 0.3125 | D63: 0.3125 | E63: 0.3125 | F63: 0.3125 | G63: 休 | H63: =SUM(A63:G63) -> 1.5625 | J63: 休 | K63: 0.3125 | L63: 0.3125 | M63: 0.3125 | N63: 休 | O63: 0.3125 | P63: 休 | Q63: =SUM(J63:P63) -> 1.25 | S63: 休 | T63: 0.3125 | U63: 0.3125 | V63: 0.3125 | W63: 0.3125 | X63: 0.3125 | Y63: 休 | Z63: =SUM(S63:Y63) -> 1.5625
A64: 2023-10-29 | B64: 2023-10-30 | C64: 2023-10-31 | J64: 2023-11-26 | K64: 2023-11-27 | L64: 2023-11-28 | M64: 2023-11-29 | N64: 2023-11-30 | S64: 2023-12-24 | T64: 2023-12-25 | U64: 2023-12-26 | V64: 2023-12-27 | W64: 2023-12-28 | X64: 2023-12-29 | Y64: 2023-12-30
A65: 休 | B65: 0.3125 | C65: 0.3125 | J65: 休 | K65: 0.3125 | L65: 0.3125 | M65: 0.3125 | N65: 0.3125 | S65: 休 | T65: 0.3125 | U65: 0.3125 | V65: 0.3125 | W65: 0.3125 | X65: 0.3125 | Y65: 0.3125 | Z65: =SUM(S65:Y65) -> 1.875
S66: 2023-12-31
S67: 休 | Z67: =SUM(S67:Y67) -> 0
A68: 9日:スポーツの日 | J68: 3日:文化の日 / 23日:勤労感謝の日

Sheet 使い方・使用許諾
A1: このツールについて
A2: ・1年単位の変形労働時間制を導入する場合の年間カレンダーを作成するツールです。
A3: ・最大で2年先までの祝日情報を自動取得します。
A4: ・作成したカレンダーの要件チェックを行います。
A6: 使い方
A7: 1．「起算日」「1日の所定労働時間」「週の開始曜日」「休日」を設定して、作成ボタンを押してください。
A8: 2．日ごとに労働時間や休日を設定したい場合は、カレンダーに直接、労働時間又は休日を入力してください。
A9: 3．「要件チェック」ボタンを押すと、1年単位変形労働時間制の法定上の要件を満たしているかチェックを行います。
A10: 作成ボタンを押したときは要件チェックを行っています。手入力でカレンダーを編集した後に実行してください。
A11: 4．「シート出力」ボタンを押すと、作成したカレンダーを別シートに出力します。レイアウトの変更を行いたい場合やシートごとに複数年管理したい場合などにご利用ください。
A13: 試用版では次の機能制限があります。
A14: ・2024年4月1日以降の祝日情報を取得できません。
A15: ・印刷用に出力したシートの編集を行えません。
A16: ・機能制限のない正式版は下記URLからご購入いただけます。
A17: https://shlc.thebase.in/items/61466920
A19: 使用許諾
A20: ・当ツールの著作権及び知的所有権は、社会保険労務士事務所しのはら労働コンサルタントに帰属します。
A21: ・当ツールの全部または一部の再配布、再使用許諾及び公開することを禁止します。
A22: ・当ツールの利用により発生したトラブル・損失・損害については、一切責任を負いません。ご利用にあたっては自己責任でお願いします。
A23: ・別料金にてカスタマイズを承ります。
A25: 作成・配付
A26: 社会保険労務士事務所しのはら労働コンサルタント
A27: 社会保険労務士 篠原宏治
A28: 〒168-0062 東京都杉並区方南1-2-10-1F
A29: TEL | B29: 03-6300-4323
A30: FAX | B30: 03-6300-4324
A31: メール | B31: mail@shlc.jp
A33: 元労働基準監督官による労務相談とエクセル業務効率化に強い社労士事務所です。
A34: 労務相談、社会保険・労働保険手続き、給与計算のご依頼を随時受け付けております。
A35: お気軽にお問い合わせください。

Sheet 祝日CSV (hidden)
A1: 国民の祝日・休日月日 | B1: 国民の祝日・休日名称
A2: 1955-01-01 | B2: 元日
A3: 1955-01-15 | B3: 成人の日
A4: 1955-03-21 | B4: 春分の日
A5: 1955-04-29 | B5: 天皇誕生日
A6: 1955-05-03 | B6: 憲法記念日
A7: 1955-05-05 | B7: こどもの日
A8: 1955-09-24 | B8: 秋分の日
A9: 1955-11-03 | B9: 文化の日
A10: 1955-11-23 | B10: 勤労感謝の日
A11: 1956-01-01 | B11: 元日
A12: 1956-01-15 | B12: 成人の日
A13: 1956-03-21 | B13: 春分の日
A14: 1956-04-29 | B14: 天皇誕生日
A15: 1956-05-03 | B15: 憲法記念日
A16: 1956-05-05 | B16: こどもの日
A17: 1956-09-23 | B17: 秋分の日
A18: 1956-11-03 | B18: 文化の日
A19: 1956-11-23 | B19: 勤労感謝の日
A20: 1957-01-01 | B20: 元日
A21: 1957-01-15 | B21: 成人の日
A22: 1957-03-21 | B22: 春分の日
A23: 1957-04-29 | B23: 天皇誕生日
A24: 1957-05-03 | B24: 憲法記念日
A25: 1957-05-05 | B25: こどもの日
A26: 1957-09-23 | B26: 秋分の日
A27: 1957-11-03 | B27: 文化の日
A28: 1957-11-23 | B28: 勤労感謝の日
A29: 1958-01-01 | B29: 元日
A30: 1958-01-15 | B30: 成人の日
A31: 1958-03-21 | B31: 春分の日
A32: 1958-04-29 | B32: 天皇誕生日
A33: 1958-05-03 | B33: 憲法記念日
A34: 1958-05-05 | B34: こどもの日
A35: 1958-09-23 | B35: 秋分の日
A36: 1958-11-03 | B36: 文化の日
A37: 1958-11-23 | B37: 勤労感謝の日
A38: 1959-01-01 | B38: 元日
A39: 1959-01-15 | B39: 成人の日
A40: 1959-03-21 | B40: 春分の日
A41: 1959-04-10 | B41: 結婚の儀
A42: 1959-04-29 | B42: 天皇誕生日
A43: 1959-05-03 | B43: 憲法記念日
A44: 1959-05-05 | B44: こどもの日
A45: 1959-09-24 | B45: 秋分の日
A46: 1959-11-03 | B46: 文化の日
A47: 1959-11-23 | B47: 勤労感謝の日
A48: 1960-01-01 | B48: 元日
A49: 1960-01-15 | B49: 成人の日
A50: 1960-03-20 | B50: 春分の日
A51: 1960-04-29 | B51: 天皇誕生日
A52: 1960-05-03 | B52: 憲法記念日
A53: 1960-05-05 | B53: こどもの日
A54: 1960-09-23 | B54: 秋分の日
A55: 1960-11-03 | B55: 文化の日
A56: 1960-11-23 | B56: 勤労感謝の日
A57: 1961-01-01 | B57: 元日
A58: 1961-01-15 | B58: 成人の日
A59: 1961-03-21 | B59: 春分の日
A60: 1961-04-29 | B60: 天皇誕生日
A61: 1961-05-03 | B61: 憲法記念日
A62: 1961-05-05 | B62: こどもの日
A63: 1961-09-23 | B63: 秋分の日
A64: 1961-11-03 | B64: 文化の日
A65: 1961-11-23 | B65: 勤労感謝の日
A66: 1962-01-01 | B66: 元日
A67: 1962-01-15 | B67: 成人の日
A68: 1962-03-21 | B68: 春分の日
A69: 1962-04-29 | B69: 天皇誕生日
A70: 1962-05-03 | B70: 憲法記念日
A71: 1962-05-05 | B71: こどもの日
A72: 1962-09-23 | B72: 秋分の日
A73: 1962-11-03 | B73: 文化の日
A74: 1962-11-23 | B74: 勤労感謝の日
A75: 1963-01-01 | B75: 元日
A76: 1963-01-15 | B76: 成人の日
A77: 1963-03-21 | B77: 春分の日
A78: 1963-04-29 | B78: 天皇誕生日
A79: 1963-05-03 | B79: 憲法記念日
A80: 1963-05-05 | B80: こどもの日
A81: 1963-09-24 | B81: 秋分の日
A82: 1963-11-03 | B82: 文化の日
A83: 1963-11-23 | B83: 勤労感謝の日
A84: 1964-01-01 | B84: 元日
A85: 1964-01-15 | B85: 成人の日
A86: 1964-03-20 | B86: 春分の日
A87: 1964-04-29 | B87: 天皇誕生日
A88: 1964-05-03 | B88: 憲法記念日
A89: 1964-05-05 | B89: こどもの日
A90: 1964-09-23 | B90: 秋分の日
A91: 1964-11-03 | B91: 文化の日
A92: 1964-11-23 | B92: 勤労感謝の日
A93: 1965-01-01 | B93: 元日
A94: 1965-01-15 | B94: 成人の日
A95: 1965-03-21 | B95: 春分の日
A96: 1965-04-29 | B96: 天皇誕生日
A97: 1965-05-03 | B97: 憲法記念日
A98: 1965-05-05 | B98: こどもの日
A99: 1965-09-23 | B99: 秋分の日
A100: 1965-11-03 | B100: 文化の日
A101: 1965-11-23 | B101: 勤労感謝の日
A102: 1966-01-01 | B102: 元日
A103: 1966-01-15 | B103: 成人の日
A104: 1966-03-21 | B104: 春分の日
A105: 1966-04-29 | B105: 天皇誕生日
A106: 1966-05-03 | B106: 憲法記念日
A107: 1966-05-05 | B107: こどもの日
A108: 1966-09-15 | B108: 敬老の日
A109: 1966-09-23 | B109: 秋分の日
A110: 1966-10-10 | B110: 体育の日
A111: 1966-11-03 | B111: 文化の日
A112: 1966-11-23 | B112: 勤労感謝の日
A113: 1967-01-01 | B113: 元日
A114: 1967-01-15 | B114: 成人の日
A115: 1967-02-11 | B115: 建国記念の日
A116: 1967-03-21 | B116: 春分の日
A117: 1967-04-29 | B117: 天皇誕生日
A118: 1967-05-03 | B118: 憲法記念日
A119: 1967-05-05 | B119: こどもの日
A120: 1967-09-15 | B120: 敬老の日
A121: 1967-09-24 | B121: 秋分の日
A122: 1967-10-10 | B122: 体育の日
A123: 1967-11-03 | B123: 文化の日
A124: 1967-11-23 | B124: 勤労感謝の日
A125: 1968-01-01 | B125: 元日
A126: 1968-01-15 | B126: 成人の日
A127: 1968-02-11 | B127: 建国記念の日
A128: 1968-03-20 | B128: 春分の日
A129: 1968-04-29 | B129: 天皇誕生日
A130: 1968-05-03 | B130: 憲法記念日
A131: 1968-05-05 | B131: こどもの日
A132: 1968-09-15 | B132: 敬老の日
A133: 1968-09-23 | B133: 秋分の日
A134: 1968-10-10 | B134: 体育の日
A135: 1968-11-03 | B135: 文化の日
A136: 1968-11-23 | B136: 勤労感謝の日
A137: 1969-01-01 | B137: 元日
A138: 1969-01-15 | B138: 成人の日
A139: 1969-02-11 | B139: 建国記念の日
A140: 1969-03-21 | B140: 春分の日
A141: 1969-04-29 | B141: 天皇誕生日
A142: 1969-05-03 | B142: 憲法記念日
A143: 1969-05-05 | B143: こどもの日
A144: 1969-09-15 | B144: 敬老の日
A145: 1969-09-23 | B145: 秋分の日
A146: 1969-10-10 | B146: 体育の日
A147: 1969-11-03 | B147: 文化の日
A148: 1969-11-23 | B148: 勤労感謝の日
A149: 1970-01-01 | B149: 元日
A150: 1970-01-15 | B150: 成人の日
A151: 1970-02-11 | B151: 建国記念の日
A152: 1970-03-21 | B152: 春分の日
A153: 1970-04-29 | B153: 天皇誕生日
A154: 1970-05-03 | B154: 憲法記念日
A155: 1970-05-05 | B155: こどもの日
A156: 1970-09-15 | B156: 敬老の日
A157: 1970-09-23 | B157: 秋分の日
A158: 1970-10-10 | B158: 体育の日
A159: 1970-11-03 | B159: 文化の日
A160: 1970-11-23 | B160: 勤労感謝の日
A161: 1971-01-01 | B161: 元日
A162: 1971-01-15 | B162: 成人の日
A163: 1971-02-11 | B163: 建国記念の日
A164: 1971-03-21 | B164: 春分の日
A165: 1971-04-29 | B165: 天皇誕生日
A166: 1971-05-03 | B166: 憲法記念日
A167: 1971-05-05 | B167: こどもの日
A168: 1971-09-15 | B168: 敬老の日
A169: 1971-09-24 | B169: 秋分の日
A170: 1971-10-10 | B170: 体育の日
A171: 1971-11-03 | B171: 文化の日
A172: 1971-11-23 | B172: 勤労感謝の日
A173: 1972-01-01 | B173: 元日
A174: 1972-01-15 | B174: 成人の日
A175: 1972-02-11 | B175: 建国記念の日
A176: 1972-03-20 | B176: 春分の日
A177: 1972-04-29 | B177: 天皇誕生日
A178: 1972-05-03 | B178: 憲法記念日
A179: 1972-05-05 | B179: こどもの日
A180: 1972-09-15 | B180: 敬老の日
A181: 1972-09-23 | B181: 秋分の日
A182: 1972-10-10 | B182: 体育の日
A183: 1972-11-03 | B183: 文化の日
A184: 1972-11-23 | B184: 勤労感謝の日
A185: 1973-01-01 | B185: 元日
A186: 1973-01-15 | B186: 成人の日
A187: 1973-02-11 | B187: 建国記念の日
A188: 1973-03-21 | B188: 春分の日
A189: 1973-04-29 | B189: 天皇誕生日
A190: 1973-04-30 | B190: 休日
A191: 1973-05-03 | B191: 憲法記念日
A192: 1973-05-05 | B192: こどもの日
A193: 1973-09-15 | B193: 敬老の日
A194: 1973-09-23 | B194: 秋分の日
A195: 1973-09-24 | B195: 休日
A196: 1973-10-10 | B196: 体育の日
A197: 1973-11-03 | B197: 文化の日
A198: 1973-11-23 | B198: 勤労感謝の日
A199: 1974-01-01 | B199: 元日
A200: 1974-01-15 | B200: 成人の日
... 799 more rows
